[Event "4th Tata Steel India Blitz Women 2022"]
[Site "Kolkota"]
[Date "2022.12.04"]
[Round "10.1"]
[White "Dzagnidze, Nana"]
[Black "Savitha Shri B"]
[Result "1-0"]
[ECO "D78"]
[WhiteElo "2517"]
[BlackElo "2411"]
[Annotator "TA"]
[PlyCount "43"]
[EventDate "2022.11.29"]
[EventType "tourn"]
[EventCountry "IND"]
[SourceTitle "playchess.com"]
[Source "ChessBase"]
[SourceQuality "1"]
[TimeControl "180+2"]

{[%evp 11,43,11,18,0,26,1,40,20,44,52,50,47,111,97,126,112,93,103,279,278,435,431,529,523,1767,1762,29991,29992,29992,2070,29993,1567,29998,29999]} 1. Nf3 {[%emt 0:00:02]} Nf6 {[%emt 0:00:01]} 2. c4 {[%emt 0:00:01]} g6 {[%emt 0:00:06]} 3. g3 {[%emt 0:00:02]} Bg7 {[%emt 0:00:01]} 4. Bg2 {[%emt 0:00:01]} c6 {[%emt 0:00:01]} 5. O-O {[%emt 0:00:05]} d5 {[%emt 0:00:01]} 6. d4 {[%emt 0:00:03]} O-O {[%emt 0:00:03]} 7. a4 {[%emt 0:00:04] 7.Nc3 is a critical line. D78: Fianchetto Grünfeld: 6 0-0 c6.} Ne4 {[%emt 0:00:27] [#]} 8. e3 $146 {[%emt 0:00:25]} ({Predecessor:} 8. a5 a6 9. Qb3 dxc4 10. Qxc4 Be6 11. Qb4 Nd6 12. Nc3 Nb5 13. Bf4 f6 14. Rfd1 Bf7 {1-0 (32) Cordova,E (2592)-Khachiyan,M (2481) Chess.com INT 2020}) 8... Na6 {[%emt 0:00:18]} 9. Nc3 {[%emt 0:00:12] White is slightly better.} Nxc3 {[%emt 0:00:13]} 10. bxc3 {[%emt 0:00:01][%cal Bb2c3,Bc3d4,Bd4c5][%mdl 32]} dxc4 {[%emt 0:00:07]} 11. Nd2 {[%emt 0:00:10]} e5 {[%emt 0:00:30]} ({Black should try} 11... Be6 $14) 12. Ba3 $16 {[%emt 0:00:07]} Re8 {[%emt 0:00:15]} 13. Nxc4 {[%emt 0:00:02]} exd4 {[%emt 0:00:02]} 14. cxd4 {[%emt 0:00:02]} c5 $2 {[%emt 0:00:07] [#] This move loses the game for Black.} (14... Bf8 $16 {keeps fighting.}) 15. dxc5 $1 $18 {[%emt 0:00:11]} ({Not} 15. Bxc5 Nxc5 16. dxc5 Bxa1 17. Qxa1 Qc7 $16) 15... Bxa1 {[%emt 0:00:37]} (15... Qc7 {was worth a try.} 16. Nd6 Rd8) 16. Qxa1 {[%emt 0:00:01]} Qc7 {[%emt 0:00:14]} 17. Nd6 {[%emt 0:00:09]} Rd8 {[%emt 0:00:15]} 18. Qf6 {[%emt 0:00:15] Bb2 would kill now.} Be6 {[%emt 0:00:10]} 19. Bb2 {[%emt 0:00:11][%csl Gb2][%cal Rf6g7]} Kf8 {[%emt 0:00:03]} 20. Nxb7 {[%emt 0:00:30]} (20. Rd1 $142 Rxd6 21. cxd6 Qxd6 22. Rxd6 Nc7 23. Rd8+ Rxd8 24. Qh8+ Ke7 25. Bf6+ Kd6 26. Qxd8+ Bd7 27. Qe7#) 20... Rdb8 {[%emt 0:00:06]} 21. Be5 {[%emt 0:00:03] This pair of bishops is nice.} (21. Rd1 $142 Bd5 22. Bxd5 Rxb7 23. Qg7+ Ke8 24. Bf6 Kd7 25. Qxf7+ Kc8 26. Qg8+ Kd7 27. Qe6#) 21... Qd7 {[%emt 0:00:03]} 22. Qh8+ {[%emt 0:00:07] Weighted Error Value: White=0.10 (very precise) /Black=1.45} 1-0

[Event "4th Tata Steel India Blitz Women 2022"]
[Site "Kolkota"]
[Date "2022.12.04"]
[Round "10.2"]
[White "Harika, Dronavalli"]
[Black "Vaishali, Rameshbabu"]
[Result "1/2-1/2"]
[ECO "A30"]
[WhiteElo "2507"]
[BlackElo "2454"]
[Annotator "TA"]
[PlyCount "69"]
[EventDate "2022.11.29"]
[EventType "tourn"]
[EventCountry "IND"]
[SourceTitle "playchess.com"]
[Source "ChessBase"]
[SourceQuality "1"]
[TimeControl "180+2"]

{[%evp 15,69,3,12,14,12,0,0,-4,17,12,12,10,5,0,0,0,0,4,0,-4,0,0,3,0,5,0,14,13,13,12,22,22,72,57,134,36,43,43,60,38,82,93,110,40,93,11,12,16,10,8,10,0,19,9,12,0]} 1. Nf3 {[%emt 0:00:02]} Nf6 {[%emt 0:00:03]} 2. g3 {[%emt 0:00:02]} b6 {[%emt 0:00:04]} 3. Bg2 {[%emt 0:00:01]} Bb7 {[%emt 0:00:02]} 4. b3 {[%emt 0:00:04]} g6 {[%emt 0:00:01]} 5. Bb2 {[%emt 0:00:02]} Bg7 {[%emt 0:00:02]} 6. O-O {[%emt 0:00:02]} c5 {[%emt 0:00:02]} 7. c4 {[%emt 0:00:02]} O-O {[%emt 0:00:04]} 8. e3 {[%emt 0:00:05]} d5 {[%emt 0:00:08]} 9. cxd5 {[%emt 0:00:03] A30: Symmetrical English: Double Fianchetto and Hedgehog.} Nxd5 {[%emt 0:00:09] has lost popularity (9...Qxd5).} 10. Bxg7 {[%emt 0:00:04]} Kxg7 {[%emt 0:00:02]} 11. d4 {[%emt 0:00:10]} cxd4 {[%emt 0:00:24]} 12. Qxd4+ {[%emt 0:00:42]} Nf6 $1 {[%emt 0:00:07]} 13. Qb2 {[%emt 0:00:11]} (13. Nbd2 {simplifies} Qxd4 14. Nxd4 Bxg2 15. Kxg2 Na6 16. Rfd1) 13... Nbd7 {[%emt 0:00:28] [#]} 14. Rd1 $146 {[%emt 0:00:08] [#] Hoping for Ne5.} ({Predecessor:} 14. Nc3 Qc7 15. Rac1 Bc6 16. Nb5 Qb7 17. Rxc6 Qxc6 18. Nfd4 Qc5 19. Rc1 Qe5 20. Bxa8 Rxa8 {1-0 (42) Tomilova,E (2300)-Mukhina,J (2004) Sochi 2017}) 14... Qc7 {[%emt 0:00:19] Prevents Ne5.} 15. Na3 {[%emt 0:00:10] aiming for Rac1.} Rad8 {[%emt 0:00:19]} 16. Rac1 {[%emt 0:00:38]} Qb8 {[%emt 0:00:01]} 17. Nb5 {[%emt 0:00:24]} Nc5 {[%emt 0:00:20]} 18. Qe5 {[%emt 0:00:32]} a6 {[%emt 0:00:50]} 19. Qxb8 {[%emt 0:00:04]} Rxb8 {[%emt 0:00:04]} 20. Nbd4 {[%emt 0:00:05]} Rbc8 {[%emt 0:00:05]} 21. Ne5 {[%emt 0:00:02]} Bxg2 {[%emt 0:00:04]} 22. Kxg2 {[%emt 0:00:01]} a5 {[%emt 0:00:03]} 23. Nc4 {[%emt 0:00:02]} Nfd7 {[%emt 0:00:03]} (23... Ncd7 $11 {remains equal.}) 24. Nb5 {[%emt 0:00:03]} Rfd8 {[%emt 0:00:02] [#]} (24... Rb8 $14) 25. Kf3 {[%emt 0:00:02]} ({Better is} 25. Nxb6 $1 $16 {[%mdl 512]} Nxb6 26. Rxd8 Rxd8 27. Rxc5) 25... Rb8 {[%emt 0:00:01]} 26. Ke2 {[%emt 0:00:02]} Na6 {[%emt 0:00:02]} 27. Rd2 {[%emt 0:00:03]} Kf8 {[%emt 0:00:02]} 28. Rcd1 {[%emt 0:00:01]} Ke8 {[%emt 0:00:01]} 29. Na7 {[%emt 0:00:04] White is much more active.} (29. f3 $16) 29... Ndc5 {[%emt 0:00:03]} ({Black should try} 29... Rb7 $14) 30. Nc6 {[%emt 0:00:03]} (30. Rxd8+ $16 Rxd8 31. Nxb6) 30... Rxd2+ $11 {[%emt 0:00:02] The position is equal.} 31. Rxd2 {[%emt 0:00:01]} Rc8 {[%emt 0:00:01]} 32. N6e5 {[%emt 0:00:01]} (32. Nxb6 $2 Rxc6 33. Nc4 a4 $19) 32... Rb8 {[%emt 0:00:03]} 33. Nc6 {[%emt 0:00:03]} Rc8 {[%emt 0:00:01]} 34. Na7 {[%emt 0:00:05]} (34. Nxb6 $2 {loses.} Rxc6 35. Nc4 a4 $19) 34... Rb8 {[%emt 0:00:03]} 35. Nc6 {[%emt 0:00:02] Weighted Error Value: White=0.16 (very precise) /Black=0.11 (very precise)} 1/2-1/2

[Event "4th Tata Steel India Blitz Women 2022"]
[Site "Kolkota"]
[Date "2022.12.04"]
[Round "10.3"]
[White "Kulkarni Bhakti"]
[Black "Muzychuk, Mariya"]
[Result "0-1"]
[ECO "D02"]
[WhiteElo "2359"]
[BlackElo "2528"]
[Annotator "TA"]
[PlyCount "76"]
[EventDate "2022.11.29"]
[EventType "tourn"]
[EventCountry "IND"]
[SourceTitle "playchess.com"]
[Source "ChessBase"]
[SourceQuality "1"]
[TimeControl "180+2"]

{[%evp 9,76,-12,10,-9,7,-7,0,-12,55,30,55,56,52,0,184,165,220,210,216,212,209,218,219,211,218,195,950,0,0,0,0,-66,-57,-52,-48,-49,-52,-183,-79,-270,-275,-268,-269,-364,-55,-45,-84,-85,-83,-875,-870,-1224,-1207,-1091,-1045,-12833,-12833,-12837,-12837,-29997,-12837,-12837,-12836,-2817,-1843,-29985,-12841,-29988,-29989]} 1. d4 {[%emt 0:00:01]} Nf6 {[%emt 0:00:00]} 2. Nf3 {[%emt 0:00:02]} d5 {[%emt 0:00:01]} 3. c3 {[%emt 0:00:02]} Bf5 {[%emt 0:00:02]} 4. Qb3 {[%emt 0:00:04]} Qc8 {[%emt 0:00:03]} 5. c4 {[%emt 0:00:04]} e6 {[%emt 0:00:05]} 6. Nc3 {[%emt 0:00:06][%cal Rc4d5] D02: 1 d4 d5 2 Nf3 sidelines, including 2...Nf6 3 g3 and 2...Nf6 3 Bf4.} Nc6 {[%emt 0:00:07] White must now prevent ...Nb4.} 7. Bg5 {[%emt 0:00:31] Strongly threatening Bxf6.} dxc4 {[%emt 0:00:08]} (7... Ne4 {simplifies} 8. cxd5 exd5 9. Nxe4 Bxe4 10. a3 Bd6) 8. Qxc4 {[%emt 0:00:04] [#] The position is equal.} Nb4 $146 {[%emt 0:00:10]} (8... Ne4 $11) ({Predecessor:} 8... Be7 9. e3 h6 10. Bxf6 Bxf6 11. Bd3 Bxd3 12. Qxd3 O-O 13. O-O Rd8 14. Rac1 e5 {1-0 (49) Neumann,U-Rusack,B DESC email 2011}) 9. Rc1 {[%emt 0:00:25]} (9. Bxf6 {simplifies} gxf6 10. e4 Bg6 11. Rc1) 9... Nc2+ {[%emt 0:00:12]} 10. Kd1 {[%emt 0:00:17]} Nb4 {[%emt 0:00:04]} 11. Ne5 {[%emt 0:00:12]} (11. Nh4 $14) 11... Be7 $2 {[%emt 0:00:16]} (11... Ne4 $11 12. Nxe4 Bxe4) 12. e4 $1 $36 {[%emt 0:00:12][%mdl 2048] White is on the roll.} Bg6 {[%emt 0:00:06]} (12... h6 {was worth a try.}) 13. a3 {[%emt 0:00:05]} Na6 {[%emt 0:00:07]} 14. Qa4+ {[%emt 0:00:02]} Nd7 {[%emt 0:00:20]} 15. Bxe7 {[%emt 0:00:09]} Kxe7 {[%emt 0:00:00]} 16. Bxa6 $1 {[%emt 0:00:18]} Nxe5 {[%emt 0:00:05]} 17. Qb4+ $1 {[%emt 0:00:12]} (17. Qb5 $6 Nd3 $16) 17... c5 $2 {[%emt 0:00:07] [#]} (17... Kd8 18. Bxb7 (18. Qxb7 Qxb7 19. Bxb7 Rb8 $16) 18... Nd3) 18. Qxb7+ $2 {[%emt 0:00:03]} (18. Nd5+ $1 $18 Kd8 19. Rxc5 (19. Bxb7 $2 cxb4 20. Bxc8 Nd3 $19)) 18... Qxb7 $11 {[%emt 0:00:09]} 19. Bxb7 {[%emt 0:00:01]} Rad8 {[%emt 0:00:04][%cal Ba8d8,Bd8b8,Bb8b2][%mdl 32]} 20. d5 {[%emt 0:00:03]} ({Better is} 20. Nd5+ $1 $11 exd5 21. dxe5) 20... Rb8 $15 {[%emt 0:00:14]} 21. Ba6 {[%emt 0:00:09]} ({Wrong is} 21. d6+ $2 Kxd6 22. Ba6 (22. Nb5+ $2 Ke7 $19) 22... Rxb2 $19) 21... Rxb2 {[%emt 0:00:01] And now ...Bh5+ would win.} 22. Rc2 $1 {[%emt 0:00:03]} Rhb8 {[%emt 0:00:09]} 23. dxe6 {[%emt 0:00:08] [#]} (23. Be2 $15) 23... fxe6 {[%emt 0:00:02]} ({And not} 23... Kxe6 24. f4 $11) (23... c4 $1 $19 24. Nd5+ Kxe6) 24. f3 $2 {[%emt 0:00:07]} (24. Be2 $17 {was necessary.}) 24... c4 $19 {[%emt 0:00:01] aiming for ...Rd8+.} 25. Rxb2 {[%emt 0:00:19]} Rxb2 {[%emt 0:00:01]} 26. Rg1 {[%emt 0:00:01]} Rb3 $2 {[%emt 0:00:08]} (26... Be8 $19 {[%cal Oe8a4] ...Ba4+! is the strong threat.} 27. Re1 Rb6) 27. Kc2 {[%emt 0:00:07][%cal Oa6c4]} Rxa3 {[%emt 0:00:01]} 28. Bb5 {[%emt 0:00:01]} a6 {[%emt 0:00:02][%cal Ba7a6,Ba6b5,Bb5b4][%mdl 32] Black is more active.} 29. f4 $2 {[%emt 0:00:01][%mdl 8192]} (29. Ba4 $17 Nd3 30. Rb1) 29... axb5 {[%emt 0:00:04]} 30. fxe5 {[%emt 0:00:01][%mdl 4096] Endgame KRB-KRN} b4 {[%emt 0:00:00]} 31. Nb5 {[%emt 0:00:02]} Bxe4+ {[%emt 0:00:01]} 32. Kb2 {[%emt 0:00:01]} Rb3+ {[%emt 0:00:02]} 33. Ka2 {[%emt 0:00:02]} Re3 {[%emt 0:00:01]} 34. Nd6 {[%emt 0:00:02]} Re2+ {[%emt 0:00:02]} (34... Ra3+ $142 35. Kb2 c3+ 36. Kc1 Ra1#) 35. Ka1 {[%emt 0:00:01]} c3 {[%emt 0:00:04] ( -> ...Bg6)} 36. Nxe4 {[%emt 0:00:03]} Rxe4 {[%emt 0:00:01]} 37. Rf1 {[%emt 0:00:01] Inhibits b3.} Rxe5 {[%emt 0:00:03]} (37... b3 $142 38. Kb1 Re2 39. Rc1 Rb2+ 40. Ka1 Ra2+ 41. Kb1 c2+ 42. Rxc2 Rxc2 43. g4 Rxh2 44. g5 Kd7 45. g6 h5 46. Kc1 h4 47. Kb1 h3 48. Ka1 Rg2 49. Kb1 h2 50. Kc1 h1=Q#) 38. Rf2 {[%emt 0:00:01]} b3 {[%emt 0:00:01] Black used his chance.   Weighted Error Value: White=1.21/Black=0.73} 0-1

[Event "4th Tata Steel India Blitz Women 2022"]
[Site "Kolkota"]
[Date "2022.12.04"]
[Round "10.4"]
[White "Ushenina, Anna"]
[Black "Kiolbasa, Oliwia"]
[Result "1-0"]
[ECO "D35"]
[WhiteElo "2454"]
[BlackElo "2406"]
[Annotator "TA"]
[PlyCount "67"]
[EventDate "2022.11.29"]
[EventType "tourn"]
[EventCountry "IND"]
[SourceTitle "playchess.com"]
[Source "ChessBase"]
[SourceQuality "1"]
[TimeControl "180+2"]

{[%evp 16,67,23,31,27,32,43,31,42,0,0,0,56,47,77,72,61,70,149,71,79,45,72,50,53,0,0,0,35,36,121,118,119,103,202,208,194,161,297,108,124,122,159,175,547,525,994,972,1827,1727,1347,551,547,533]} 1. d4 {[%emt 0:00:02]} d5 {[%emt 0:00:01]} 2. c4 {[%emt 0:00:01]} e6 {[%emt 0:00:01]} 3. Nc3 {[%emt 0:00:03]} Nf6 {[%emt 0:00:02]} 4. Nf3 {[%emt 0:00:01]} Nbd7 {[%emt 0:00:01]} 5. cxd5 {[%emt 0:00:14]} exd5 {[%emt 0:00:02]} 6. Bf4 {[%emt 0:00:04]} c6 {[%emt 0:00:08]} 7. h3 {[%emt 0:00:05]} Be7 {[%emt 0:00:11]} 8. Qc2 {[%emt 0:00:03]} Nf8 {[%emt 0:00:34]} 9. e3 {[%emt 0:00:02]} Ng6 {[%emt 0:00:05] D35: Queen's Gambit Declined: Exchange Variation.} 10. Bh2 {[%emt 0:00:08]} O-O {[%emt 0:00:02]} 11. Bd3 {[%emt 0:00:02]} Re8 {[%emt 0:00:05] White is slightly better.} 12. Ne5 {[%emt 0:00:11]} Bd6 {[%emt 0:00:10]} 13. f4 {[%emt 0:00:02]} (13. Nxg6 {simplifies} Bxh2 14. Rxh2 hxg6 15. O-O-O) 13... Nd7 {[%emt 0:00:21]} (13... c5 $11) 14. O-O $14 {[%emt 0:00:09]} Ngf8 {[%emt 0:00:17]} 15. Rae1 {[%emt 0:00:02]} f6 {[%emt 0:00:27]} 16. Nf3 {[%emt 0:00:04] [#] White is much more active.} b5 $146 {[%emt 0:00:02]} ({Better is} 16... Nb6 $14) ({Predecessor:} 16... Nb6 17. e4 dxe4 18. Nxe4 Bb4 19. Re2 Nd5 20. a3 Ba5 21. b4 Bc7 22. Rfe1 Bd7 {1-0 (61) Jelen,I (2351)-Brinovec,D (2212) Radenci 2019}) 17. f5 {[%emt 0:00:15]} (17. e4 $142) 17... Bxh2+ {[%emt 0:00:05]} 18. Nxh2 {[%emt 0:00:01]} (18. Kxh2 $5 {[%cal Re3e4]} b4 19. Na4 $16) 18... Nb6 {[%emt 0:00:08]} 19. b3 {[%emt 0:00:03]} a5 {[%emt 0:00:04]} 20. Qf2 {[%emt 0:00:11]} ({White should play} 20. Ne2 $14) 20... Ba6 $11 {[%emt 0:00:11]} 21. Ne2 {[%emt 0:00:05]} Qd6 {[%emt 0:00:10]} 22. Nf4 {[%emt 0:00:09]} c5 {[%emt 0:00:04]} (22... Nc8 $14) 23. dxc5 $16 {[%emt 0:00:09]} Qxc5 {[%emt 0:00:02]} 24. Nf3 {[%emt 0:00:06][%cal Bh2f3,Bf3d4,Bd4e6][%mdl 32]} Nbd7 {[%emt 0:00:06]} (24... b4 $16) 25. Nd4 $18 {[%emt 0:00:04]} Ne5 {[%emt 0:00:02]} 26. Be2 {[%emt 0:00:06]} b4 {[%emt 0:00:10]} (26... Rec8 $142 27. g4 h6) 27. Nfe6 $2 {[%emt 0:00:20]} (27. Bxa6 $18 {is more deadly.} Rxa6 28. Rc1) 27... Nxe6 $16 {[%emt 0:00:04]} 28. Nxe6 {[%emt 0:00:01]} Qe7 {[%emt 0:00:05] [#]} 29. Rc1 $1 {[%emt 0:00:07] Black must now prevent Rc7.} Rec8 {[%emt 0:00:13] Inhibits Rc7.} (29... Bxe2 30. Qxe2 Ra7) 30. Bxa6 $18 {[%emt 0:00:04] White is clearly winning.} Rxc1 {[%emt 0:00:04]} 31. Rxc1 {[%emt 0:00:01]} Rxa6 {[%emt 0:00:03]} 32. Rc8+ {[%emt 0:00:09]} Kf7 {[%emt 0:00:01]} 33. Qe2 {[%emt 0:00:12]} ({Weaker is} 33. Qg3 Rxe6 34. fxe6+ Kxe6 $18) (33. Nd8+ $142 Kf8 34. Qe2) 33... Rxe6 {[%emt 0:00:04]} 34. Qh5+ {[%emt 0:00:05] Weighted Error Value: White=0.37/Black=0.55} 1-0

[Event "4th Tata Steel India Blitz Women 2022"]
[Site "Kolkota"]
[Date "2022.12.04"]
[Round "10.5"]
[White "Koneru, Humpy"]
[Black "Muzychuk, Anna"]
[Result "1-0"]
[ECO "A30"]
[WhiteElo "2574"]
[BlackElo "2525"]
[Annotator "TA"]
[PlyCount "67"]
[EventDate "2022.11.29"]
[EventType "tourn"]
[EventCountry "IND"]
[SourceTitle "playchess.com"]
[Source "ChessBase"]
[SourceQuality "1"]
[TimeControl "180+2"]

{[%evp 18,67,57,68,66,43,53,53,67,66,65,60,62,15,15,15,15,4,17,11,0,13,85,87,81,79,186,179,561,562,556,556,547,538,597,596,596,544,552,523,799,797,829,818,960,972,909,870,859,806,1931,1598]} 1. Nf3 {[%emt 0:00:01]} c5 {[%emt 0:00:08]} 2. b3 {[%emt 0:00:05]} Nf6 {[%emt 0:00:09]} 3. Bb2 {[%emt 0:00:01]} g6 {[%emt 0:00:06]} 4. c4 {[%emt 0:00:23]} Bg7 {[%emt 0:00:02]} 5. g3 {[%emt 0:00:14]} O-O {[%emt 0:00:06]} 6. Bg2 {[%emt 0:00:01]} Nc6 {[%emt 0:00:28]} 7. O-O {[%emt 0:00:04]} b6 {[%emt 0:00:16]} 8. d4 {[%emt 0:00:13]} cxd4 {[%emt 0:00:02]} 9. Nxd4 {[%emt 0:00:03]} Bb7 {[%emt 0:00:00]} 10. Nc3 {[%emt 0:00:06]} Rc8 {[%emt 0:00:10] A30: Symmetrical English: Double Fianchetto and Hedgehog.} 11. Rc1 {[%emt 0:00:12] 11.Qd2 is the fancy move.} a6 {[%emt 0:00:11]} 12. e3 {[%emt 0:00:10] [#]} e6 $146 {[%emt 0:00:31] White is slightly better.} ({Predecessor:} 12... d6 13. h3 Qd7 14. Nde2 Ne5 15. e4 e6 16. Qd2 Rfd8 17. Rfd1 Qc7 18. a4 Nc6 {1-0 (30) Kozak,A (2503)-Ozdemir,S (2191) Chess.com INT 2020}) 13. Ba3 {[%emt 0:00:33]} Re8 {[%emt 0:00:01]} 14. Bd6 {[%emt 0:00:11] White is more active.} Na5 {[%emt 0:00:06]} 15. Qe2 {[%emt 0:00:11]} (15. e4 $1 $14) 15... Bxg2 $11 {[%emt 0:00:03]} 16. Kxg2 {[%emt 0:00:02]} Nb7 {[%emt 0:00:17]} 17. Ba3 {[%emt 0:00:01]} Nc5 {[%emt 0:00:09]} 18. Rfd1 {[%emt 0:00:05]} Qc7 {[%emt 0:00:02]} 19. Qf3 {[%emt 0:00:03]} Red8 {[%emt 0:00:04]} (19... d6 $11) 20. b4 $16 {[%emt 0:00:10]} Nb7 {[%emt 0:00:04]} 21. b5 $36 {[%emt 0:00:01][%mdl 2048] [#] Be7 is the strong threat. White is in control.} axb5 {[%emt 0:00:18]} (21... Nc5 $16) 22. Be7 $18 {[%emt 0:00:08]} ({Worse is} 22. cxb5 Nc5 $11) 22... Qe5 {[%emt 0:00:30]} (22... Ne8 {is tougher.}) 23. Qxb7 {[%emt 0:00:04] White is clearly winning.} Rb8 24. Qf3 {[%emt 0:00:09]} Re8 {[%emt 0:00:00]} 25. Bxf6 {[%emt 0:00:03]} Bxf6 {[%emt 0:00:04]} 26. Ndxb5 Red8 27. Ne4 {[%cal Bc3e4,Be4d6,Bd6b7,Bb7d6,Bd6f7][%mdl 32]} Bg7 28. Ned6 f5 {[%emt 0:00:00]} 29. Nb7 {[%emt 0:00:18]} Rdc8 {[%emt 0:00:00]} 30. Rxd7 {[%emt 0:00:09]} Ra8 {[%emt 0:00:00]} 31. N7d6 {[%emt 0:00:04]} Rf8 {[%emt 0:00:00]} 32. a3 {[%emt 0:00:07]} g5 33. Rd1 {[%emt 0:00:04]} Kh8 {[%emt 0:00:06]} 34. Nf7+ {[%emt 0:00:02] Weighted Error Value: White=0.08 (flawless) /Black=0.39} 1-0

[Event "4th Tata Steel India Blitz Women 2022"]
[Site "Kolkota"]
[Date "2022.12.04"]
[Round "11.1"]
[White "Kiolbasa, Oliwia"]
[Black "Harika, Dronavalli"]
[Result "0-1"]
[ECO "B07"]
[WhiteElo "2406"]
[BlackElo "2507"]
[Annotator "TA"]
[PlyCount "74"]
[EventDate "2022.11.29"]
[EventType "tourn"]
[EventCountry "IND"]
[SourceTitle "playchess.com"]
[Source "ChessBase"]
[SourceQuality "1"]
[TimeControl "180+2"]

{[%evp 16,74,66,31,48,32,47,26,33,26,46,15,47,37,43,37,53,49,60,55,61,19,75,70,72,25,48,0,32,35,31,-64,-62,-127,-122,-186,-173,-207,-207,-216,-67,-213,-217,-272,-276,-604,-611,-593,-500,-760,-768,-1801,-773,-29992,-29993,-29993,-29992,-29994,-29990,-29995,-29995]} 1. e4 {[%emt 0:00:01]} Nc6 {[%emt 0:00:01]} 2. Nf3 {[%emt 0:00:03]} d6 {[%emt 0:00:01]} 3. d4 {[%emt 0:00:05]} Nf6 {[%emt 0:00:02]} 4. Bd3 {[%emt 0:00:25]} g6 {[%emt 0:00:02]} 5. O-O {[%emt 0:00:08]} Bg7 {[%emt 0:00:02]} 6. c3 {[%emt 0:00:02]} O-O {[%emt 0:00:04]} 7. Re1 {[%emt 0:00:07]} e5 {[%emt 0:00:02]} 8. h3 {[%emt 0:00:11]} Re8 {[%emt 0:00:25]} 9. Nbd2 {[%emt 0:00:12]} Nh5 {[%emt 0:00:09][%cal Re5d4] 9...d5 is more fashionable. B07: Pirc Defence: Miscellaneous Systems.} 10. d5 {[%emt 0:00:15]} Ne7 {[%emt 0:00:15]} 11. Nf1 {[%emt 0:00:05]} Rf8 {[%emt 0:00:03] [#] White has an edge.} 12. c4 $146 {[%emt 0:00:26]} ({Predecessor:} 12. g4 Nf6 13. Ng3 Nd7 14. c4 Nc5 15. Bc2 a5 16. Be3 b6 17. Kh2 f5 18. exf5 gxf5 19. Bxc5 bxc5 20. gxf5 Nxf5 21. Nxf5 Bxf5 22. Bxf5 Rxf5 {0-1 (30) Fishbein,A (2428)-Sanal,V (2593) Chess.com INT 2022}) 12... h6 {[%emt 0:00:05]} 13. b4 {[%emt 0:00:19]} Nf4 {[%emt 0:00:02]} 14. Bxf4 {[%emt 0:00:36]} exf4 {[%emt 0:00:01]} 15. Rc1 {[%emt 0:00:00]} a5 {[%emt 0:00:17]} 16. b5 {[%emt 0:00:14]} Re8 {[%emt 0:00:22]} 17. c5 {[%emt 0:00:03]} g5 {[%emt 0:00:23]} 18. b6 {[%emt 0:00:04]} cxb6 {[%emt 0:00:01]} (18... c6 $11 {keeps the balance.}) 19. cxd6 $16 {[%emt 0:00:05]} Qxd6 {[%emt 0:00:02]} 20. Qb3 {[%emt 0:00:15]} ({White should play} 20. N1d2 $16) 20... a4 {[%emt 0:00:09]} 21. Qc2 {[%emt 0:00:03]} (21. Qb1 $14) 21... Bd7 {[%emt 0:00:05]} 22. N1d2 {[%emt 0:00:01] [#] And now Nc4 would win.} b5 {[%emt 0:00:11] Prevents Nc4.} 23. e5 {[%emt 0:00:02]} (23. Qb1 $14) 23... Qxd5 $15 {[%emt 0:00:02]} 24. Be4 {[%emt 0:00:01]} (24. Qb1 $15) 24... Qe6 $17 {[%emt 0:00:06]} 25. Nd4 {[%emt 0:00:03]} (25. Qb1 $17) 25... Qb6 $19 {[%emt 0:00:03]} ({Don't do} 25... Qxe5 26. Bh7+ (26. Bxb7 $2 {too greedy.} Qxd4 27. Bxa8 Rc8 $19) 26... Kh8 27. Rxe5 Bxe5 28. Qd3 $18) 26. N2f3 {[%emt 0:00:03]} Rac8 {[%emt 0:00:03]} 27. Qd2 {[%emt 0:00:03]} Be6 {[%emt 0:00:14]} (27... Rxc1 $19 28. Rxc1 Rd8) 28. Bb1 {[%emt 0:00:01] White does not recover from this.} (28. Nxe6 $15 Rxc1 29. Rxc1 Qxe6 30. Bxb7) 28... Rxc1 {[%emt 0:00:04]} 29. Rxc1 {[%emt 0:00:02]} Rd8 {[%emt 0:00:03] [#] White must now prevent ...Nc6.} 30. Qc2 {[%emt 0:00:02]} (30. Qb2) 30... Rxd4 {[%emt 0:00:18]} 31. Nxd4 {[%emt 0:00:02]} Qxd4 {[%emt 0:00:01]} 32. Qh7+ {[%emt 0:00:01]} (32. Rd1 $142 Qb6 33. Qh7+ Kf8 34. h4) 32... Kf8 {[%emt 0:00:00]} 33. Rc7 {[%emt 0:00:01]} f3 {[%emt 0:00:17] ( -> ...Qd1+)} 34. Rxe7 {[%emt 0:00:03]} Qd1+ {[%emt 0:00:02] Black mates.} 35. Kh2 {[%emt 0:00:02]} Bxe5+ {[%emt 0:00:01]} 36. g3 {[%emt 0:00:01]} Kxe7 {[%emt 0:00:02]} 37. Qxh6 {[%emt 0:00:02]} Qd2 {[%emt 0:00:01] Weighted Error Value: White=0.99/Black=0.54} 0-1